bitfinex/quotes_SOLUSD_20211001
["timestamp","ask_amount","ask_price","bid_price","bid_amount"]
[1633106007232,34.46793534,157.02,156.88,29.0453734]
[1633106007434,34.46793534,157.02,156.88,527.89102887]
[1633106007634,34.46793534,157.02,156.88,531.34315479]
[1633106007836,34.46793534,157.02,156.88,527.89102887]
[1633106008234,34.46793534,157.02,156.88,567.57052887]
[1633106008439,34.46793534,157.02,156.9,3.4556145]
[1633106008634,34.46793534,157.02,156.91,28.55125779]
[1633106012236,34.46793534,157.02,156.91,31.98570551]
[1633106012435,34.46793534,157.02,156.91,28.55125779]
[1633106019142,34.46793534,157.02,156.91,30.71125779]
[1633106022643,34.48881534,157.02,156.91,30.71125779]
[1633106025243,36.64881534,157.02,156.91,28.55125779]
[1633106025444,36.62793534,157.02,156.91,28.55125779]
[1633106025643,0.02088,157.01,156.91,28.55125779]
[1633106026543,36.62793534,157.02,156.91,28.55125779]
[1633106027544,34.46793534,157.02,156.91,30.71125779]
[1633106028143,34.46793534,157.02,156.92,6.6338074]
[1633106028943,34.46793534,157.02,156.92,9.98662029]
[1633106029143,34.46793534,157.02,156.92,25.90562029]
[1633106029346,34.46793534,157.02,156.93,2.16]
[1633106029544,34.46793534,157.02,156.93,8.75510391]
[1633106029744,34.46793534,157.02,156.93,2.16]
[1633106029943,34.46793534,157.02,156.94,36.58323155]
[1633106030143,34.46793534,157.02,156.95,6.49962654]
[1633106030344,2.16,157.08,157.03,34.46793534]
[1633106030546,0.02088,157.1,157.03,34.46793534]
[1633106032545,2.16,157.11,157.03,34.46793534]
[1633106044958,0.02088,157.16,157.03,34.46793534]
[1633106044959,2.16,157.15,157.03,34.46793534]
[1633106045158,2.18088,157.2,157.04,2.16]
[1633106045556,2.18088,157.2,157.04,106.52496234]
[1633106045958,2.18088,157.2,157.05,27.00964386]
[1633106046157,2.16,157.2,157.06,2.16]
[1633106047157,2.18088,157.24,157.06,64.7143184]
[1633106047561,2.16,157.24,157.06,128.4943184]
[1633106047760,2.18088,157.27,157.06,128.4943184]
[1633106048757,2.16,157.27,157.09,15.9017]
[1633106048958,2.16,157.27,157.1,27.01966563]
[1633106049157,2.16,157.27,157.1,89.57398403]
[1633106049362,2.16,157.27,157.11,39.85477042]
[1633106049558,2.16,157.27,157.12,2.16]
[1633106049761,2.16,157.27,157.12,64.7143184]
[1633106049959,2.16,157.27,157.13,23.53449176]
[1633106050161,2.16,157.27,157.13,25.69449176]
[1633106050561,2.16,157.27,157.13,40.32089984]
[1633106050759,78.1184,157.35,157.14,15.8961]
[1633106050760,2.16,157.32,157.14,15.8961]
[1633106050959,2.16,157.32,157.15,2.16]
[1633106051160,2.16,157.32,157.15,65.21987396]
[1633106051360,2.16,157.32,157.16,39.85477042]
[1633106051561,2.16,157.36,157.17,28.17904829]
[1633106051760,2.16,157.36,157.17,91.23892225]
[1633106051959,2.16,157.36,157.18,48.43346588]
[1633106052160,2.16,157.36,157.19,2.16]
[1633106052363,2.16,157.36,157.2,21.90857644]
[1633106052562,2.16,157.36,157.21,2.16]
[1633106054961,2.16,157.36,157.22,0.02088]
[1633106055163,2.16,157.36,157.23,2.16]
[1633106055364,2.16,157.4,157.24,0.02088]
[1633106055563,2.16,157.4,157.25,2.16]
[1633106055962,2.16,157.4,157.26,22.35653694]
[1633106056565,21.33097262,157.39,157.26,22.35653694]
[1633106056763,2.16,157.38,157.26,22.35653694]
[1633106057967,2.16,157.42,157.26,24.53741694]
[1633106058164,2.16,157.42,157.26,89.9525218]
[1633106058566,2.26808364,157.46,157.26,153.7325218]
[1633106059366,0.10808364,157.46,157.28,15.8824]
[1633106059568,0.10808364,157.46,157.29,2.16]
[1633106059766,1.49476944,157.49,157.3,2.16]
[1633106059966,1.49476944,157.49,157.3,68.95784774]
[1633106060167,1.47388944,157.49,157.31,0.02088]
[1633106060368,1.47388944,157.49,157.32,2.16]
[1633106060569,1.47388944,157.49,157.32,68.95784774]
[1633106060769,1.47388944,157.49,157.34,28.40026072]
[1633106060967,1.47388944,157.49,157.35,2.16]
[1633106061170,2.16,157.53,157.36,0.02088]
[1633106061370,2.16,157.53,157.38,28.53724594]
[1633106062769,15.91434037,157.52,157.38,28.53724594]
[1633106063370,2.16,157.53,157.38,28.53724594]
[1633106063571,2.16,157.53,157.38,53.20123837]
[1633106063772,2.16,157.53,157.38,79.86368582]
[1633106063970,2.16,157.57,157.39,2.16]
[1633106064372,2.16,157.57,157.41,24.92066787]
[1633106064572,2.16,157.57,157.42,2.16]
[1633106064772,23.9122443,157.57,157.42,2.16]
[1633106065371,2.16,157.57,157.42,2.16]
[1633106065777,2.16,157.57,157.42,2.18088]
[1633106066074,2.16,157.57,157.42,2.16]
[1633106066277,2.16,157.6,157.42,53.99199543]
[1633106066474,2.16,157.6,157.42,83.91557506]
[1633106067872,29.52265425,157.6,157.42,83.91557506]
[1633106068071,29.52265425,157.6,157.42,69.47257506]
[1633106069472,2.16,157.6,157.42,53.99199543]
[1633106069672,2.16,157.6,157.42,73.08499543]
[1633106070274,2.16,157.6,157.43,0.02088]
[1633106070477,2.16,157.6,157.44,2.16]
[1633106070676,21.09271339,157.61,157.45,24.87024037]
[1633106070875,2.16,157.62,157.46,2.16]
[1633106071879,29.05682074,157.61,157.46,2.16]
[1633106072281,0.02088,157.6,157.46,2.16]
[1633106073079,2.18088,157.6,157.46,2.16]
[1633106073479,2.18088,157.6,157.45,24.87024037]
[1633106073683,2.18088,157.6,157.39,2.16]
[1633106073881,15.3625189,157.59,157.39,2.16]
[1633106074082,2.18088,157.58,157.39,2.16]
[1633106074280,0.02088,157.57,157.39,2.16]
[1633106074480,2.16,157.56,157.36,24.75679798]
[1633106074682,2.16,157.56,157.37,30.24648213]
[1633106074683,0.02088,157.55,157.37,30.24648213]
[1633106074882,2.16,157.54,157.37,30.24648213]
[1633106075083,0.02088,157.53,157.35,2.16]
[1633106075285,2.16,157.52,157.35,2.16]
[1633106075683,0.02088,157.51,157.35,2.16]
[1633106075883,2.16,157.5,157.31,2.16]
[1633106076085,21.29004529,157.49,157.32,26.455446]
[1633106076286,2.18088,157.48,157.32,26.455446]
[1633106077884,2.16,157.48,157.32,26.455446]
[1633106078083,2.16,157.48,157.31,2.16]
[1633106078084,0.02088,157.47,157.3,2.940785]
[1633106078284,2.16,157.46,157.3,6.72167881]
[1633106078486,0.02088,157.45,157.29,26.91679798]
[1633106078683,2.16,157.44,157.29,24.75679798]
[1633106078887,2.16,157.44,157.3,6.70671389]
[1633106079083,0.02088,157.45,157.31,29.73055095]
[1633106079283,2.16,157.47,157.32,2.9047076]
[1633106079484,21.50292119,157.46,157.34,26.78583136]
[1633106082788,2.16,157.47,157.34,26.78583136]
[1633106083987,2.16,157.47,157.35,6.65245571]
[1633106084790,2.16,157.47,157.34,26.78583136]
[1633106084990,2.16,157.47,157.35,6.61282254]
[1633106086192,2.16,157.47,157.35,9.47687558]
[1633106086391,0.02088,157.52,157.39,2.82359802]
[1633106086392,2.16,157.5,157.39,2.82359802]
[1633106086796,2.16,157.5,157.4,2.80897999]
[1633106086991,2.16,157.5,157.41,2.81286235]
[1633106087392,2.16,157.5,157.42,24.15617085]
[1633106088594,2.16,157.5,157.43,6.5407043]
[1633106089194,2.16,157.55,157.44,2.86501292]
[1633106089400,2.16,157.55,157.46,2.89086063]
[1633106089798,150.2325,157.59,157.46,2.89086063]
[1633106089998,2.16,157.6,157.47,29.8396426]
[1633106091821,2.16,157.6,157.49,2.9905992]
[1633106092022,2.16,157.6,157.5,2.98257594]
[1633106092224,110.5255,157.63,157.5,2.98257594]
[1633106092421,110.5255,157.63,157.51,22.8363476]
[1633106093621,110.5255,157.63,157.51,55.42419288]
[1633106094422,108.3655,157.63,157.52,26.1290202]
[1633106094625,2.16,157.67,157.52,26.1290202]
[1633106094822,2.16,157.67,157.53,32.51562306]
[1633106095223,2.16,157.67,157.54,2.16]
[1633106095425,2.16,157.71,157.54,49.4690202]
[1633106095623,2.16,157.71,157.55,86.25170684]
[1633106095825,2.16,157.71,157.56,2.16]
[1633106096023,2.16,157.71,157.56,34.67562306]
[1633106096224,2.16,157.71,157.57,32.51562306]
[1633106096423,2.16,157.71,157.58,22.42569485]
[1633106096624,2.16,157.71,157.58,24.58569485]
[1633106097024,2.16,157.71,157.59,32.51562306]
[1633106097425,2.16,157.71,157.59,51.37262306]
[1633106097828,2.16,157.76,157.6,34.51489648]
[1633106098026,2.16,157.76,157.61,27.89931468]
[1633106098227,2.16,157.76,157.61,60.25421116]
[1633106098429,2.16,157.76,157.62,32.35489648]
[1633106098826,2.16,157.76,157.62,34.51489648]
[1633106099127,2.16,157.76,157.63,32.35489648]
[1633106099527,2.16,157.8,157.64,2.16]
[1633106099930,2.16,157.8,157.65,32.35489648]
[1633106100130,2.16,157.8,157.66,25.8908387]
[1633106100534,2.16,157.83,157.67,34.51489648]
[1633106101130,2.16,157.83,157.67,2.16]
[1633106101334,26.61012013,157.82,157.66,25.8908387]
[1633106101529,2.16,157.81,157.66,25.8908387]
[1633106102132,2.16,157.81,157.67,2.16]
[1633106102333,2.16,157.84,157.67,2.16]
[1633106102531,2.16,157.84,157.68,56.75058335]
[1633106102734,2.16,157.84,157.69,2.16]
[1633106102931,2.16,157.84,157.69,32.78156315]
[1633106103131,2.16,157.84,157.7,23.5869784]
[1633106103532,2.16,157.84,157.7,23.6078584]
[1633106103933,2.16,157.84,157.71,2.16]
[1633106104335,2.16,157.84,157.72,0.02088]
[1633106104532,117.2,157.87,157.73,2.16]
[1633106104734,117.2,157.87,157.73,2.18088]
[1633106105133,2.16,157.89,157.74,23.94354682]
[1633106106334,10.0,157.76,157.74,23.94354682]
[1633106106734,2.16,157.89,157.74,23.94354682]
[1633106107134,2.16,157.89,157.75,2.16]
[1633106107536,2.16,157.89,157.76,57.13494783]
[1633106107738,2.16,157.89,157.77,21.5511747]
[1633106107933,21.0444853,157.88,157.77,21.5511747]
[1633106108335,21.0444853,157.88,157.73,2.18088]
[1633106108534,2.16,157.87,157.73,2.16]
[1633106109334,2.16,157.87,157.74,26.31510279]
[1633106110535,2.16,157.87,157.71,32.7037054]
[1633106110937,21.497,157.87,157.71,32.7037054]
[1633106111136,21.497,157.87,157.71,2.16]
[1633106111337,0.02088,157.86,157.71,2.16]
[1633106111537,2.16,157.85,157.7,25.55236091]
[1633106111738,21.48222471,157.84,157.7,25.55236091]
[1633106111939,2.16,157.83,157.7,25.55236091]
[1633106112743,1.66,157.83,157.67,55.3815222]
[1633106114342,1.66,157.83,157.66,2.16]
[1633106114343,0.02088,157.82,157.61,17.05255244]
[1633106114541,2.16,157.81,157.61,2.16]
[1633106114741,21.31074177,157.8,157.62,24.75943114]
[1633106114941,2.18088,157.79,157.62,24.75943114]
[1633106115144,0.02088,157.78,157.62,24.75943114]
[1633106115345,2.16,157.77,157.62,24.75943114]
[1633106115543,21.48222471,157.76,157.62,24.75943114]
[1633106115742,2.16,157.75,157.58,78.3227]
[1633106115942,2.16,157.75,157.56,14.75509453]
[1633106116541,0.02088,157.74,157.54,27.69535354]
[1633106116743,0.02088,157.74,157.57,27.30242752]
[1633106116744,2.16,157.73,157.57,27.30242752]
[1633106116942,23.47074177,157.73,157.57,27.30242752]
[1633106117142,23.47074177,157.73,157.58,26.01839088]
[1633106117944,2.16,157.73,157.58,26.01839088]
[1633106118142,2.16,157.73,157.58,50.18152219]
[1633106118544,2.16,157.73,157.59,26.01839088]
[1633106118944,2.16,157.73,157.6,22.11675212]
[1633106119346,2.16,157.73,157.6,48.135143]
[1633106119545,2.16,157.73,157.6,72.29827431]
[1633106119746,2.16,157.77,157.61,2.18088]
[1633106119945,2.16,157.77,157.61,21.39]
[1633106120145,2.16,157.77,157.62,50.18152219]
[1633106120346,2.16,157.77,157.63,25.08699951]
[1633106120546,19.36641287,157.76,157.63,25.08699951]
[1633106122945,2.16,157.75,157.63,25.08699951]
[1633106123147,17.11245798,157.82,157.64,31.0]
[1633106123346,2.16,157.81,157.64,31.0]
[1633106123645,2.16,157.81,157.63,25.08699951]
[1633106123847,0.02088,157.8,157.63,25.08699951]
[1633106124047,2.18088,157.79,157.58,2.81707494]
[1633106124246,2.18088,157.78,157.56,2.83634155]
[1633106124447,0.02088,157.77,157.57,2.84649987]
[1633106124652,2.16,157.76,157.56,2.85778716]
[1633106124848,0.02088,157.75,157.56,2.85778716]
[1633106125049,6.29321563,157.73,157.57,28.67476808]
[1633106125250,2.16,157.72,157.56,2.85778716]
[1633106125450,65.94,157.72,157.53,2.9376747]
[1633106125652,2.44817999,157.68,157.53,2.9376747]
[1633106125849,2.16,157.67,157.5,2.97755057]
[1633106126051,2.16,157.67,157.51,2.97928387]
[1633106126250,15.61245798,157.66,157.5,28.5187905]
[1633106126450,2.16,157.65,157.51,7.17779686]
[1633106126649,2.16,157.65,157.51,10.12026442]
[1633106127451,2.16,157.65,157.51,7.17779686]
[1633106127650,16.33882185,157.64,157.5,31.47529408]
[1633106127851,2.16,157.63,157.5,28.5187905]
[1633106128051,2.16,157.63,157.51,0.0212976]
[1633106128451,2.16,157.63,157.51,7.27328718]
[1633106128652,2.16,157.63,157.52,0.0212976]
[1633106129254,2.16,157.63,157.52,2.97995721]
[1633106129453,2.16,157.63,157.53,24.54487826]
[1633106129655,2.16,157.63,157.53,24.04487826]
[1633106132856,2.16,157.63,157.47,3.02452514]
[1633106133056,2.16,157.63,157.46,7.28964277]
[1633106133255,2.16,157.63,157.44,0.0212976]
[1633106133256,2.16,157.63,157.44,10.3332909]
[1633106133857,2.16,157.63,157.45,24.53033182]
[1633106136158,65.94,157.63,157.45,24.53033182]
[1633106136965,143.5297,157.63,157.45,24.53033182]
[1633106137163,2.16,157.63,157.45,24.53033182]
[1633106137365,2.16,157.63,157.46,26.01839088]
[1633106137767,2.16,157.63,157.47,31.17620526]
[1633106138165,2.16,157.63,157.48,22.55393755]
[1633106138569,2.16,157.63,157.48,22.57523515]
[1633106139768,2.16,157.63,157.48,22.55393755]
[1633106141171,2.16,157.63,157.44,0.0212976]
[1633106141369,2.16,157.63,157.43,0.0212976]
[1633106142170,65.94,157.63,157.43,25.35800087]
[1633106142369,65.94,157.63,157.44,0.0212976]
[1633106142570,2.16,157.63,157.44,0.0212976]
[1633106142972,53.622,157.63,157.44,0.0212976]
[1633106143171,2.57333504,157.58,157.43,0.0212976]
[1633106143373,2.16,157.57,157.41,0.0212976]
[1633106143572,0.02088,157.56,157.35,3.09198237]
[1633106143775,2.16,157.55,157.34,3.10118025]
[1633106143974,2.16,157.55,157.32,7.39074856]
[1633106143975,17.2331501,157.55,157.33,3.11709276]
[1633106144175,28.03442297,157.55,157.35,29.80910436]
[1633106144373,89.63354297,157.54,157.35,29.80910436]
[1633106144574,4.73706599,157.53,157.35,29.80910436]
[1633106144773,63.78,157.52,157.32,0.0212976]
[1633106144974,2.16,157.51,157.32,0.0212976]
[1633106145174,2.42877064,157.48,157.31,0.0212976]
[1633106145377,2.53459926,157.44,157.3,0.0212976]
[1633106145573,2.53459926,157.44,157.23,4.75546722]
[1633106145574,15.8998,157.42,157.25,3.1670296]
[1633106145773,15.8998,157.42,157.25,22.68992334]
[1633106145774,65.94,157.41,157.25,22.68992334]
[1633106146174,16.21362345,157.4,157.24,0.0212976]
[1633106146376,4.64276857,157.39,157.21,10.60210919]
[1633106146575,68.42276857,157.39,157.21,7.3750089]
[1633106146777,84.63639202,157.39,157.21,7.3750089]
[1633106147175,20.85639202,157.39,157.22,28.14241065]
[1633106147374,15.905,157.37,157.19,3.29171583]
[1633106147575,2.18088,157.36,157.17,3.31834731]
[1633106147779,0.02088,157.35,157.16,10.71501043]
[1633106147976,2.16,157.34,157.16,7.37665769]
[1633106148179,2.18088,157.34,157.16,7.37665769]
[1633106148377,18.39450345,157.34,157.17,21.34672263]
[1633106148979,2.16,157.34,157.17,21.34672263]
[1633106149378,18.37362345,157.34,157.17,21.34672263]
[1633106149778,15.9089,157.32,157.17,21.34672263]
[1633106149977,2.16,157.31,157.17,21.34672263]
[1633106152778,5.25777739,157.16,157.14,0.0012976]
[1633106152980,5.25777739,157.16,157.13,3.42198209]
[1633106153181,5.25777739,157.16,157.12,0.02088]
[1633106153379,2.16,157.15,157.07,3.49724299]
[1633106153679,25.29712858,157.03,156.92,2.16]
[1633106153878,25.29712858,157.03,156.89,347.30216386]
[1633106153879,25.29712858,157.03,156.93,79.268]
[1633106154080,25.29712858,157.03,156.93,26.90324243]
[1633106154878,25.29712858,157.03,156.94,25.35318073]
[1633106156480,2.16,157.02,156.85,2.16]
[1633106156682,2.16,157.02,156.82,2.16]
[1633106157080,2.16,157.02,156.83,26.08331866]
[1633106157482,2.16,157.02,156.84,53.71759178]
[1633106157681,2.16,157.02,156.84,68.58290606]
[1633106157883,2.16,157.02,156.85,52.33656109]
[1633106158080,2.16,157.02,156.85,69.36187537]
[1633106158281,2.16,157.02,156.86,52.33656109]
[1633106158484,2.16,157.02,156.87,29.01091258]
[1633106158681,2.16,157.02,156.87,55.09423124]
[1633106159280,2.16,157.02,156.88,26.08331866]
[1633106159682,45.67256592,156.85,156.82,2.16]
[1633106159881,8.65256592,156.85,156.83,26.08331866]
[1633106160081,8.65256592,156.85,156.77,2.16]
[1633106160282,8.65256592,156.85,156.77,26.07036688]
[1633106160681,8.65256592,156.85,156.78,21.32263671]
[1633106161080,8.65256592,156.85,156.78,45.23300359]
[1633106161280,2.16,156.94,156.85,8.65256592]
[1633106161480,73.2717,157.03,156.85,8.65256592]
[1633106161481,2.16,156.97,156.85,8.65256592]
[1633106161681,2.20088,157.03,156.86,49.47943068]
[1633106161882,2.20088,157.03,156.87,29.3426768]
[1633106162084,2.20088,157.03,156.87,97.45762902]
[1633106162283,2.20088,157.03,156.88,44.35144398]
[1633106162681,0.04088,157.02,156.88,18.63552154]
[1633106162883,2.16,157.01,156.88,18.63552154]
[1633106163083,0.04088,157.0,156.87,27.1826768]
[1633106163283,2.20088,157.0,156.88,25.71592244]
[1633106163486,0.04088,156.99,156.88,25.71592244]
[1633106163882,2.16,157.02,156.89,24.19684158]
[1633106164084,2.16,157.04,156.9,30.09768471]
[1633106164285,2.16,157.04,156.9,48.73320625]
[1633106165882,0.04088,157.03,156.9,48.73320625]
[1633106166084,2.16,157.02,156.9,48.73320625]
[1633106166282,0.04088,157.01,156.9,48.73320625]
[1633106167082,0.04088,157.03,156.9,48.73320625]
[1633106168086,0.04088,157.03,156.91,2.16]
[1633106168288,0.04088,157.06,156.91,2.16]
[1633106168686,0.04088,157.06,156.91,27.87592244]
[1633106169088,0.04088,157.06,156.91,52.34807123]
[1633106169289,0.04088,157.06,156.91,69.64025944]
[1633106170490,0.04088,157.08,156.94,366.71175842]
[1633106170691,0.04088,157.08,156.95,24.91477926]
[1633106170888,0.04088,157.08,156.95,27.07477926]
[1633106171088,0.04088,157.1,156.95,27.07477926]
[1633106171291,2.16,157.13,156.95,52.7907017]
[1633106171489,0.04088,157.12,156.95,52.7907017]
[1633106171688,0.04088,157.12,156.95,77.26285049]
[1633106171889,0.04088,157.12,156.95,52.7907017]
[1633106172088,0.04088,157.12,156.95,27.07477926]
[1633106172089,2.16,157.11,156.95,27.07477926]
[1633106172290,0.04088,157.1,156.95,27.07477926]
[1633106173090,2.16,157.11,156.95,27.07477926]
[1633106173091,0.04088,157.06,156.95,27.07477926]
[1633106173892,0.04088,157.09,156.95,27.07477926]
[1633106174092,2.16,157.09,156.96,10.48473434]
[1633106174292,0.04088,157.08,156.96,10.48473434]
[1633106176892,2.16,157.07,156.96,10.48473434]
[1633106178095,2.16,157.07,156.96,36.20065678]
[1633106178295,2.20088,157.11,156.97,10.495398]
[1633106178494,0.04088,157.11,156.98,27.98471385]
[1633106178694,2.20088,157.16,156.99,10.49315191]
[1633106178895,0.04088,157.15,157.0,2.16]
[1633106179095,2.16,157.14,157.01,26.65476949]
[1633106179299,2.16,157.13,157.02,10.49693615]
[1633106179497,0.04088,157.12,157.02,10.49693615]
[1633106179695,2.16,157.11,157.02,10.49693615]
[1633106179896,2.20088,157.11,157.02,10.49693615]
[1633106183499,2.16,157.11,157.02,10.49693615]
[1633106185101,2.20088,157.11,157.02,10.49693615]
[1633106190803,2.16,157.11,157.02,10.49693615]
[1633106191201,2.20088,157.11,157.02,10.49693615]
[1633106194309,2.20088,157.11,156.99,10.51320102]
[1633106194708,0.04088,157.1,156.99,10.51320102]
[1633106194906,2.16,157.09,156.99,10.51320102]
[1633106195108,0.04088,157.08,156.99,10.51320102]
[1633106195310,15.9361,157.06,156.95,30.0736426]
[1633106195509,2.20088,157.05,156.95,30.0736426]
[1633106195727,0.04088,157.04,156.89,9.22860053]
[1633106195912,2.16,157.03,156.89,9.22860053]
[1633106196109,0.04088,157.02,156.89,9.22860053]
[1633106196312,2.16,157.01,156.89,9.22860053]
[1633106196509,0.04088,157.0,156.87,10.51757204]
[1633106196712,0.04088,157.0,156.89,26.98391682]
[1633106197110,0.04088,157.0,156.9,10.51614202]
[1633106197313,2.16,157.01,156.9,10.51614202]
[1633106203817,2.16,157.05,156.9,35.39514202]
[1633106204014,2.16,157.11,157.1,4.61278515]
[1633106204214,2.16,157.11,157.1,51.75085439]
[1633106204215,31.0,157.11,157.1,51.75085439]
[1633106204414,2.16,157.15,157.1,51.75085439]
[1633106204613,2.16,157.18,157.1,51.75085439]
[1633106205216,2.16,157.23,157.1,51.75085439]
[1633106205616,2.16,157.23,157.1,53.91085439]
[1633106205919,0.02088,157.3,157.1,53.91085439]
[1633106205920,2.16,157.28,157.1,53.91085439]
[1633106206117,2.16,157.28,157.11,0.02088]
[1633106206321,2.16,157.33,157.12,2.16]
[1633106206521,2.16,157.33,157.13,25.51902832]
[1633106206717,2.16,157.33,157.14,13.28180851]
[1633106206916,2.16,157.37,157.15,0.02088]
[1633106207118,2.16,157.37,157.17,27.85657326]
[1633106207317,2.16,157.37,157.18,2.18088]
[1633106207918,2.16,157.4,157.21,15.8879]
[1633106208118,2.16,157.4,157.23,29.56065951]
[1633106208319,2.16,157.4,157.24,2.18088]
[1633106208521,2.16,157.4,157.24,21.63925894]
[1633106208917,2.16,157.4,157.24,2.18088]
[1633106209317,2.16,157.4,157.24,2.16]
[1633106209522,2.16,157.4,157.23,29.56065951]
[1633106210736,0.02088,157.39,157.23,29.56065951]
[1633106210919,2.16,157.38,157.23,29.56065951]
[1633106211122,2.18088,157.38,157.23,29.56065951]
[1633106211921,2.16,157.38,157.23,29.56065951]
[1633106213745,2.16,157.38,157.18,27.24250248]
[1633106213923,18.581,157.38,157.18,0.02088]
[1633106214123,18.581,157.38,157.15,2.16]
[1633106214124,0.02088,157.37,157.15,2.16]
[1633106214323,2.16,157.36,157.12,81.0508]
[1633106214524,0.02088,157.35,157.13,27.22162248]
[1633106214723,2.16,157.34,157.14,24.58949641]
[1633106214924,0.02088,157.33,157.14,26.74949641]
[1633106215124,2.16,157.32,157.15,27.22162248]
[1633106215327,0.02088,157.37,157.15,56.34498713]
[1633106215328,2.16,157.31,157.15,56.34498713]
[1633106215533,2.16,157.33,157.15,56.34498713]
[1633106215725,2.16,157.35,157.16,71.62114384]
[1633106215927,2.16,157.35,157.18,22.91975718]
[1633106216125,2.16,157.35,157.19,2.16]
[1633106216329,2.16,157.35,157.19,46.83865919]
[1633106216526,2.16,157.35,157.19,73.80202384]
[1633106216748,2.16,157.35,157.2,71.62114384]
[1633106216926,2.16,157.39,157.21,31.72904448]
[1633106217127,2.16,157.42,157.22,0.02088]
[1633106217328,2.16,157.42,157.24,30.16317163]
[1633106217526,2.16,157.42,157.25,2.16]
[1633106217727,2.16,157.42,157.26,0.02088]
[1633106217927,2.16,157.42,157.27,2.16]
[1633106218131,2.16,157.47,157.28,23.81002495]
[1633106218326,2.16,157.47,157.29,2.18088]
[1633106218535,2.16,157.51,157.3,0.02088]
[1633106218729,2.16,157.51,157.31,2.16]
[1633106218931,2.16,157.51,157.32,26.56550149]
[1633106219128,2.16,157.51,157.33,2.18088]
[1633106219329,2.16,157.51,157.34,0.02088]
[1633106219532,2.16,157.51,157.36,30.18740176]
[1633106220730,2.16,157.51,157.32,17.43615671]
[1633106220930,2.16,157.51,157.19,54.1]
[1633106220931,0.02088,157.5,157.29,2.16]
[1633106221131,4.69371317,157.49,157.29,2.16]
[1633106221332,4.69371317,157.49,157.25,205.20641227]
[1633106221333,0.02088,157.48,157.26,2.16]
[1633106221535,2.16,157.47,157.26,2.16]
[1633106221731,2.16,157.47,157.27,53.56371043]
[1633106221931,2.16,157.47,157.28,2.16]
[1633106221932,2.18088,157.47,157.28,2.16]
[1633106222131,2.16,157.47,157.28,29.38162248]
[1633106223933,2.18088,157.47,157.28,27.22162248]
[1633106224134,2.18088,157.47,157.29,27.14940026]
[1633106224332,2.16,157.47,157.3,2.16]
[1633106224530,2.16,157.47,157.31,28.77831629]
[1633106224731,2.16,157.5,157.32,2.18088]
[1633106225131,2.16,157.5,157.32,46.42014875]
[1633106225529,2.16,157.5,157.33,27.14940026]
[1633106225729,2.16,157.5,157.34,25.31653042]
[1633106227131,2.16,157.5,157.34,25.33741042]
[1633106227931,117.2,157.55,157.54,2.29432]
[1633106228133,0.02218768,157.54,157.38,23.075]
[1633106228334,2.16,157.53,157.38,23.075]
[1633106228531,2.16,157.53,157.39,0.0212976]
[1633106229132,2.16,157.53,157.39,24.90304755]
[1633106229731,2.16,157.53,157.39,52.05244781]
[1633106230131,12.76653004,157.61,157.39,80.58612596]
[1633106230132,2.16,157.56,157.39,80.58612596]
[1633106230331,2.16,157.59,157.4,0.0212976]
[1633106230533,2.16,157.6,157.42,24.14659827]
[1633106230731,2.16,157.6,157.43,2.1812976]
[1633106230934,2.16,157.6,157.44,0.0212976]
[1633106231132,2.16,157.6,157.46,28.78446304]
[1633106231333,2.16,157.6,157.47,0.0212976]
[1633106231533,2.16,157.63,157.48,2.16]
[1633106231733,2.16,157.63,157.49,27.7776666]
[1633106233133,2.16,157.63,157.48,2.1812976]
[1633106233334,2.16,157.63,157.48,0.0212976]
[1633106233539,2.16,157.63,157.46,2.16]